bitfinex-derivatives/quotes_SOLF0:USTF0_20241120
["timestamp","ask_amount","ask_price","bid_price","bid_amount"]
[1732108783126,6.49760142,238.17,238.03,3.54]
[1732108783326,6.49760142,238.17,238.09,6.49760142]
[1732108783527,2.0976,238.16,238.1,2.0981]
[1732108783728,2.0976,238.16,238.11,6.49760142]
[1732108784129,2.0977,238.15,238.1,2.0981]
[1732108784631,6.49760142,238.18,238.11,6.49760142]
[1732108784830,2.0976,238.16,238.11,6.49760142]
[1732108785325,6.49760142,238.16,238.06,2.0984]
[1732108785520,6.49760142,238.14,238.06,6.49760142]
[1732108785724,6.49760142,238.15,238.06,6.49760142]
[1732108786124,2.0979,238.13,238.08,6.49760142]
[1732108786321,2.3406,238.19,238.08,6.49760142]
[1732108786521,3.36,238.2,238.12,6.49760142]
[1732108786830,2.0975,238.18,238.12,8.59550142]
[1732108787025,9.85760142,238.2,238.1,6.49760142]
[1732108787225,6.49760142,238.18,238.11,2.098]
[1732108787828,2.0977,238.15,238.1,8.59570142]
[1732108788028,6.49760142,238.18,238.08,6.49760142]
[1732108788635,2.0978,238.15,238.09,2.0981]
[1732108789130,6.49760142,238.16,238.08,8.59590142]
[1732108789529,6.49760142,238.16,238.08,2.0983]
[1732108789729,2.098,238.12,238.07,2.0984]
[1732108789931,2.098,238.12,238.07,8.59600142]
[1732108790330,2.0982,238.1,238.05,2.0985]
[1732108790527,6.49760142,238.14,238.06,6.49760142]
[1732108790731,6.49760142,238.12,238.0,2.3843]
[1732108790932,2.4953,238.19,238.07,6.49760142]
[1732108791132,6.49760142,238.15,238.07,6.49760142]
[1732108791532,2.0978,238.14,238.07,8.59600142]
[1732108791733,2.0978,238.14,238.09,6.49760142]
[1732108791938,2.0978,238.14,238.0,2.3843]
[1732108791939,2.4953,238.19,238.11,6.49760142]
[1732108792130,2.0976,238.17,238.11,8.59560142]
[1732108792329,3.36,238.2,238.11,6.49760142]
[1732108792528,6.49760142,238.17,238.0,2.3843]
[1732108792730,6.49760142,238.17,238.09,6.49760142]
[1732108793135,6.49760142,238.19,238.11,6.49760142]
[1732108793732,2.0976,238.16,238.11,2.098]
[1732108794037,6.49760142,238.19,238.11,8.59560142]
[1732108794237,2.0978,238.14,238.09,6.49760142]
[1732108794436,6.49760142,238.15,238.0,2.3843]
[1732108794634,6.49760142,238.15,238.06,6.49760142]
[1732108795338,6.49760142,238.13,238.04,6.49760142]
[1732108795537,2.0981,238.1,238.04,2.0986]
[1732108795836,6.49760142,238.11,237.97,3.46982]
[1732108796031,2.0983,238.08,238.02,8.59640142]
[1732108796238,6.49760142,238.05,237.97,0.30982]
[1732108796835,2.0988,238.03,237.98,6.49760142]
[1732108797138,13.70950142,238.12,238.02,6.49760142]
[1732108797636,2.0988,238.03,237.99,6.49760142]
[1732108798339,6.49760142,238.06,237.97,6.80742142]
[1732108798539,6.49760142,238.06,237.97,8.90672142]
[1732108798936,6.49760142,238.06,237.97,6.80742142]
[1732108800039,2.0989,238.02,237.97,6.80742142]
[1732108800241,2.0989,238.02,237.97,0.30982]
[1732108800443,232.82679254,238.3,238.16,28.0]
[1732108800636,2.4814,238.4,238.25,6.49760142]
[1732108800835,2.096,238.35,238.26,2.0967]
[1732108801035,2.4814,238.4,238.17,4.8023]
[1732108801036,6.49760142,238.38,238.17,4.8023]
[1732108801236,6.49760142,238.35,238.23,6.49760142]
[1732108801540,6.49760142,238.32,238.21,2.0971]
[1732108801731,6.49760142,238.32,238.22,6.49760142]
[1732108801939,3.16,238.37,238.17,4.8023]
[1732108801940,6.49760142,238.29,238.17,4.8023]
[1732108802139,6.49760142,238.26,238.17,8.89250142]
[1732108802343,9.65760142,238.26,238.17,8.89250142]
[1732108802534,3.16,238.26,238.19,8.59490142]
[1732108802837,3.16,238.26,238.17,12.53771875]
[1732108803038,2.3614,238.28,238.17,12.53771875]
[1732108803440,10.14281875,238.34,238.17,12.53771875]
[1732108803634,4.6845,238.41,238.17,12.53771875]
[1732108803635,10.14281875,238.37,238.24,2.0969]
[1732108803840,3.16,238.36,238.24,10.14281875]
[1732108804451,2.3614,238.4,238.27,10.14281875]
[1732108804639,290.69867628,238.91,238.31,10.14281875]
[1732108804840,7.94113323,238.79,238.5,10.14281875]
[1732108805047,10.14281875,238.7,238.54,10.14281875]
[1732108805246,10.14281875,238.7,238.5,10.14281875]
[1732108805545,3.16,238.73,238.49,10.14281875]
[1732108805842,12.23571875,238.69,238.53,10.14281875]
[1732108806043,13.30281875,238.73,238.53,10.14281875]
[1732108806243,13.30281875,238.73,238.57,10.14281875]
[1732108806649,3.16,238.73,238.57,16.17189248]
[1732108806946,5.2526,238.73,238.57,16.17189248]
[1732108807249,3.16,238.73,238.53,16.17189248]
[1732108807449,16.17189248,238.7,238.48,19.33189248]
[1732108807748,2.0932,238.67,238.48,19.33189248]
[1732108808043,3.16,238.66,238.48,19.33189248]
[1732108809743,19.33189248,238.66,238.48,3.16]
[1732108809944,19.33189248,238.66,238.44,16.17189248]
[1732108810341,2.0936,238.62,238.44,16.17189248]
[1732108810547,19.33189248,238.66,238.44,16.17189248]
[1732108810747,2.0936,238.62,238.44,18.26699248]
[1732108810946,2.0936,238.62,238.44,16.17189248]
[1732108811453,2.0938,238.6,238.44,16.17189248]
[1732108811756,19.33189248,238.66,238.44,16.17189248]
[1732108811948,2.0937,238.61,238.44,16.17189248]
[1732108812248,19.33189248,238.66,238.44,16.17189248]
[1732108812646,19.33189248,238.66,238.48,16.17189248]
[1732108812848,3.16,238.66,238.48,16.17189248]
[1732108813055,5.2533,238.65,238.49,2.0946]
[1732108813350,3.16,238.66,238.5,16.17189248]
[1732108814544,2.0936,238.62,238.5,16.17189248]
[1732108814753,3.16,238.66,238.5,16.17189248]
[1732108815558,16.17189248,238.74,238.54,16.17189248]
[1732108815749,3.16,238.73,238.54,16.17189248]
[1732108815951,2.0929,238.7,238.55,2.0941]
[1732108816152,3.16,238.73,238.58,16.17189248]
[1732108816348,2.336,238.78,238.58,16.17189248]
[1732108816349,3.16,238.74,238.58,16.17189248]
[1732108816754,2.0926,238.73,238.6,2.0937]
[1732108817163,2.0928,238.71,238.58,18.26569248]
[1732108817348,3.16,238.74,238.58,16.17189248]
[1732108817549,2.336,238.78,238.58,16.17189248]
[1732108817748,3.16,238.77,238.58,16.17189248]
[1732108818156,16.17189248,238.75,238.58,16.17189248]
[1732108818860,2.0927,238.72,238.58,16.17189248]
[1732108819068,3.16,238.77,238.58,16.17189248]
[1732108819367,2.0925,238.75,238.61,2.0936]
[1732108819657,3.16,238.75,238.58,16.17189248]
[1732108820059,2.0925,238.74,238.62,2.0935]
[1732108820258,3.16,238.75,238.62,2.0935]
[1732108820760,2.336,238.78,238.62,2.0935]
[1732108820950,3.16,238.77,238.62,16.17189248]
[1732108821558,2.0924,238.75,238.64,2.0933]
[1732108822054,2.4556,238.79,238.65,2.0933]
[1732108822759,2.0924,238.75,238.65,2.0933]
[1732108823160,3.16,238.74,238.48,5.2548]
[1732108823455,3.16,238.74,238.57,16.17189248]
[1732108823656,3.16,238.74,238.61,16.17189248]
[1732108824053,2.0927,238.73,238.61,16.17189248]
[1732108824455,2.0925,238.74,238.61,16.17189248]
[1732108824656,5.6156,238.79,238.61,16.17189248]
[1732108824852,5.6156,238.79,238.61,18.26549248]
[1732108825455,16.17189248,238.78,238.61,2.0936]
[1732108825860,16.17189248,238.78,238.58,3.1]
[1732108826060,5.6156,238.79,238.61,16.17189248]
[1732108826661,5.6156,238.79,238.63,2.0934]
[1732108826861,2.0927,238.73,238.61,16.17189248]
[1732108827762,2.0927,238.73,238.65,2.0933]
[1732108827959,16.17189248,238.82,238.61,16.17189248]
[1732108828263,3.1,238.81,238.61,16.17189248]
[1732108828662,10.10681884,238.77,238.61,10.10681884]
[1732108829064,2.0928,238.71,238.63,2.0935]
[1732108829458,2.0928,238.71,238.61,10.10681884]
[1732108829861,2.0927,238.73,238.64,2.0934]
[1732108830175,2.0927,238.73,238.64,10.10681884]
[1732108830353,10.10681884,238.8,238.64,10.10681884]
[1732108830959,2.0924,238.76,238.64,12.20021884]
[1732108831155,10.10681884,238.8,238.64,10.10681884]
[1732108831863,2.0928,238.71,238.64,12.20021884]
[1732108832467,2.0931,238.68,238.61,5.1936]
[1732108832958,10.10681884,238.77,238.61,3.1]
[1732108833158,10.10681884,238.77,238.63,10.10681884]
[1732108833761,2.0928,238.71,238.64,2.0934]
[1732108834362,2.0928,238.71,238.65,2.0933]
[1732108834561,10.10681884,238.77,238.65,2.0933]
[1732108834768,10.10681884,238.8,238.66,10.10681884]
[1732108835160,2.0926,238.73,238.66,10.10681884]
[1732108835365,10.10681884,238.8,238.65,2.3825]
[1732108835668,10.10681884,238.8,238.66,2.0932]
[1732108835868,2.0927,238.73,238.66,2.0932]
[1732108836065,321.96997,238.85,238.65,2.3825]
[1732108836261,10.10681884,238.82,238.68,2.0929]
[1732108836458,10.10681884,238.82,238.65,2.3825]
[1732108836668,10.10681884,238.82,238.67,10.10681884]
[1732108836870,2.0926,238.74,238.67,10.10681884]
[1732108837470,2.0924,238.76,238.68,2.0929]
[1732108837769,3.1,238.81,238.67,10.10681884]
[1732108838768,2.0925,238.75,238.68,2.0929]
[1732108839766,2.0925,238.74,238.68,2.0929]
[1732108840068,3.1,238.81,238.69,2.0929]
[1732108840266,3.1,238.81,238.67,10.10681884]
[1732108840767,3.1,238.81,238.65,2.3825]
[1732108840768,2.093,238.69,238.65,2.3825]
[1732108841071,10.10681884,238.79,238.65,2.3825]
[1732108841962,10.10681884,238.76,238.6,3.1]
[1732108842167,10.10681884,238.76,238.6,13.20681884]
[1732108842565,2.0931,238.68,238.6,13.20681884]
[1732108842771,2.0931,238.68,238.62,2.0935]
[1732108842970,10.10681884,238.76,238.6,13.20681884]
[1732108843170,3.1,238.81,238.63,10.10681884]
[1732108843171,10.10681884,238.79,238.63,10.10681884]
[1732108843471,10.10681884,238.79,238.64,2.0933]
[1732108843872,2.0929,238.7,238.63,12.20031884]
[1732108844172,10.10681884,238.79,238.63,10.10681884]
[1732108844368,2.0931,238.68,238.63,10.10681884]
[1732108845073,2.0929,238.69,238.63,10.10681884]
[1732108845370,10.10681884,238.76,238.6,10.10681884]
[1732108845573,2.0933,238.66,238.6,12.20051884]
[1732108845764,5.6645,238.75,238.6,10.10681884]
[1732108845962,10.10681884,238.72,238.57,12.63251884]
[1732108846164,5.6645,238.75,238.49,46.25449253]
[1732108846165,10.10681884,238.69,238.54,10.10681884]
[1732108846570,3.1,238.68,238.54,10.10681884]
[1732108846767,2.0938,238.6,238.54,10.10681884]
[1732108847168,10.10681884,238.66,238.5,12.20131884]
[1732108847369,10.10681884,238.66,238.5,10.10681884]
[1732108847567,2.4585,238.65,238.5,10.10681884]
[1732108848180,10.10681884,238.63,238.47,10.10681884]
[1732108848469,2.0939,238.59,238.47,10.10681884]
[1732108848670,3.1,238.59,238.47,10.10681884]
[1732108849068,3.1,238.59,238.45,3.1]
[1732108849069,3.1,238.59,238.45,10.10681884]
[1732108849269,2.397,238.58,238.43,10.10681884]
[1732108850373,10.10681884,238.57,238.43,10.10681884]
[1732108850769,3.1,238.56,238.43,10.10681884]
[1732108851372,13.20681884,238.56,238.41,2.3535]
[1732108851579,13.20681884,238.56,238.4,10.10681884]
[1732108851773,13.20681884,238.56,238.41,2.0954]
[1732108851774,2.0949,238.47,238.41,2.0954]
[1732108851976,13.20681884,238.56,238.38,10.10681884]
[1732108852380,2.0945,238.52,238.42,2.0953]
[1732108852580,13.20681884,238.56,238.41,10.10681884]
[1732108852874,13.20681884,238.56,238.35,3.1]
[1732108852875,3.1,238.56,238.44,10.10681884]
[1732108853079,2.0945,238.51,238.41,12.20221884]
[1732108853275,3.1,238.56,238.41,10.10681884]
[1732108853477,3.1,238.56,238.35,3.1]
[1732108853673,2.397,238.58,238.44,10.10681884]
[1732108853875,3.1,238.57,238.44,10.10681884]
[1732108854782,3.1,238.57,238.47,10.10681884]
[1732108855883,2.0942,238.56,238.48,2.0948]
[1732108856081,3.1,238.57,238.5,10.10681884]
[1732108856281,2.397,238.58,238.47,10.10681884]
[1732108856582,2.094,238.57,238.5,2.0946]
[1732108857280,2.397,238.58,238.47,10.10681884]
[1732108857480,2.3882,238.62,238.5,10.10681884]
[1732108857686,2.3882,238.62,238.47,10.10681884]
[1732108857882,2.3882,238.62,238.48,10.10681884]
[1732108858686,2.3882,238.62,238.51,10.10681884]
[1732108858895,2.3882,238.62,238.48,10.10681884]
[1732108859387,2.0939,238.59,238.48,10.10681884]
[1732108859580,2.3882,238.62,238.51,10.10681884]
[1732108860180,4.1847,238.77,238.46,2.4826]
[1732108860181,4.1829,238.87,238.59,10.10681884]
[1732108860385,290.69867628,238.98,238.64,10.10681884]
[1732108860386,2.439,238.79,238.64,10.10681884]
[1732108860688,2.439,238.79,238.71,2.0927]
[1732108860882,2.439,238.79,238.67,10.10681884]
[1732108861281,15.09341884,238.84,238.65,3.06]
[1732108861480,4.9866,238.84,238.7,10.10681884]
[1732108861886,2.0919,238.81,238.73,2.0926]
[1732108862283,4.9866,238.84,238.7,10.10681884]
[1732108862484,2.0918,238.82,238.73,2.0925]
[1732108862678,2.0918,238.82,238.73,5.3325]
[1732108863183,4.9866,238.84,238.71,2.0927]
[1732108863484,4.9866,238.84,238.72,3.24]
[1732108864085,4.9866,238.84,238.73,3.24]
[1732108864392,2.0918,238.82,238.74,3.24]
[1732108864583,4.9866,238.84,238.75,2.0924]
[1732108864884,4.9866,238.84,238.74,3.24]
[1732108865288,4.9866,238.84,238.7,10.10681884]
[1732108865592,2.439,238.87,238.76,10.10681884]
[1732108865785,2.11892525,239.0,238.79,10.10681884]
[1732108865979,193.95902088,238.85,238.79,10.10681884]
[1732108866279,192.02935088,238.85,238.83,2.0917]
[1732108866485,192.02935088,238.85,238.84,3.24]
[1732108866680,192.02935088,238.85,238.82,3.24]
[1732108866884,192.02935088,238.85,238.81,3.24]
[1732108867278,192.02935088,238.85,238.82,10.10681884]
[1732108867681,184.28595088,238.85,238.83,2.0917]
[1732108868083,58.75305587,238.85,238.83,2.0917]
[1732108868279,58.75305587,238.85,238.83,10.10681884]
[1732108869085,58.75305587,238.85,238.84,3.24]
[1732108870382,5.7818,239.03,238.84,3.24]
[1732108870383,12.64861884,239.03,238.84,3.24]
[1732108870587,12.64861884,239.03,238.86,10.10681884]
[1732108870883,10.10681884,239.0,238.86,10.10681884]
[1732108871485,10.10681884,239.0,238.86,13.34681884]
[1732108872192,10.10681884,238.99,238.86,13.34681884]
[1732108872387,10.10681884,239.02,238.86,13.34681884]
[1732108872688,2.091,238.91,238.86,13.34681884]
[1732108872889,10.10681884,239.02,238.86,13.34681884]
[1732108873386,2.0911,238.9,238.86,13.34681884]
[1732108874287,10.10681884,239.05,238.89,10.10681884]
[1732108874484,10.10681884,239.02,238.87,3.24]
[1732108874891,10.10681884,239.02,238.86,10.10681884]
[1732108875092,10.10681884,238.96,238.81,10.10681884]
[1732108875291,10.10681884,238.93,238.78,10.10681884]
[1732108877195,10.10681884,238.93,238.79,2.0921]
[1732108877395,7.1863,238.92,238.79,2.0921]
[1732108877795,7.1863,238.92,238.81,10.10681884]
[1732108878698,2.0914,238.88,238.83,2.0917]
[1732108878992,7.1863,238.92,238.77,2.0922]
[1732108878993,2.0915,238.86,238.77,2.0922]
[1732108879194,7.1863,238.92,238.77,2.0922]
[1732108879701,10.10681884,238.87,238.73,10.10681884]
[1732108880196,3.24,238.9,238.73,10.10681884]
[1732108880197,13.34681884,238.9,238.73,10.10681884]
[1732108881400,2.0919,238.81,238.76,2.0923]
[1732108881699,3.24,238.9,238.73,10.10681884]
[1732108881996,3.24,238.9,238.76,2.0923]
[1732108882191,3.24,238.9,238.73,10.10681884]
[1732108882797,10.10681884,238.88,238.73,10.10681884]
[1732108883299,2.0921,238.79,238.74,2.0924]
[1732108883595,10.10681884,238.88,238.74,2.0924]
[1732108884596,2.0922,238.78,238.74,2.0924]
[1732108884896,10.10681884,238.88,238.73,10.10681884]
[1732108885297,2.0917,238.84,238.73,10.10681884]
[1732108885494,10.10681884,238.88,238.73,10.10681884]
[1732108885692,10.10681884,238.85,238.7,13.34681884]
[1732108885902,2.0922,238.78,238.73,2.0926]
[1732108886194,2.0922,238.78,238.7,13.34681884]
[1732108886401,10.10681884,238.91,238.77,2.0922]
[1732108886596,3.24,238.9,238.73,10.10681884]
[1732108886898,10.10681884,238.88,238.73,10.10681884]
[1732108887393,10.10681884,238.88,238.64,2.4183]
[1732108887394,2.0921,238.79,238.74,2.0924]
[1732108887593,10.10681884,238.85,238.68,10.10681884]
[1732108888100,5.3822442,238.9,238.65,3.24]
[1732108888294,13.34681884,238.9,238.75,10.10681884]
[1732108888498,8.3577,239.1,238.79,10.10681884]
[1732108888695,10.10681884,238.95,238.79,10.10681884]
[1732108889297,10.10681884,238.95,238.78,10.10681884]
[1732108889498,3.24,238.94,238.78,10.10681884]
[1732108889797,3.24,238.94,238.79,10.10681884]
[1732108890493,2.0911,238.9,238.82,2.0918]
[1732108890696,10.10681884,238.95,238.82,10.10681884]
[1732108891501,10.10681884,238.95,238.82,12.19851884]
[1732108891893,2.0914,238.87,238.82,2.0918]
[1732108892103,10.10681884,238.95,238.79,13.34681884]
[1732108892602,10.10681884,238.95,238.84,2.0916]
[1732108892603,2.0912,238.89,238.84,2.0916]
[1732108892896,10.10681884,238.98,238.82,10.10681884]
[1732108893103,10.10681884,238.98,238.85,2.0914]
[1732108893898,2.0912,238.89,238.84,2.0916]
[1732108894296,2.0912,238.89,238.82,10.10681884]
[1732108894495,12.3372,239.01,238.85,2.0915]
[1732108894700,10.10681884,238.99,238.82,10.10681884]
[1732108895105,2.0911,238.91,238.85,2.0915]
[1732108895408,10.10681884,238.96,238.82,10.10681884]
[1732108895707,10.10681884,238.96,238.79,13.34681884]
[1732108896497,2.0914,238.87,238.84,2.0915]
[1732108896701,2.3526,239.0,238.76,12.61801884]
[1732108896702,13.34681884,238.93,238.76,12.61801884]
[1732108896898,10.10681884,238.9,238.76,12.61801884]
[1732108897304,10.10681884,238.9,238.76,10.10681884]
[1732108897507,10.10681884,238.9,238.77,2.0922]
[1732108897508,2.0919,238.81,238.77,2.0922]
[1732108897905,7.1428,238.89,238.76,10.10681884]
[1732108898210,7.1428,238.89,238.79,10.10681884]
[1732108898403,7.1428,238.89,238.76,10.10681884]
[1732108899308,7.1428,238.89,238.79,10.10681884]
[1732108899903,2.0917,238.84,238.8,2.0919]
[1732108900216,7.1428,238.89,238.76,10.10681884]
[1732108900511,7.1428,238.89,238.76,12.19911884]
[1732108900707,7.1428,238.89,238.76,10.10681884]
[1732108901209,7.1428,238.89,238.77,2.0922]
[1732108901815,2.0915,238.86,238.81,2.0919]
[1732108902011,7.1428,238.89,238.76,10.10681884]
[1732108902613,7.1428,238.89,238.78,2.0921]
[1732108903308,2.0919,238.81,238.77,2.0922]
[1732108903509,2.0919,238.81,238.7,2.3771]
[1732108903510,17.24961884,238.89,238.73,10.10681884]
[1732108903806,10.10681884,238.86,238.7,12.48391884]
[1732108904007,10.10681884,238.86,238.7,10.10681884]
[1732108904008,3.24,238.85,238.7,10.10681884]
[1732108904201,10.10681884,238.83,238.67,10.10681884]
[1732108904407,2.0924,238.75,238.7,2.0928]
[1732108904611,3.24,238.85,238.67,10.10681884]
[1732108904612,13.34681884,238.85,238.67,10.10681884]
[1732108905407,10.10681884,238.79,238.64,10.10681884]
[1732108905609,2.3763,238.78,238.64,10.10681884]
[1732108905814,3.24,238.77,238.64,10.10681884]
[1732108906013,8.3426,238.77,238.66,2.0932]
[1732108906418,8.3426,238.77,238.64,10.10681884]
[1732108907517,5.1026,238.77,238.67,10.10681884]
[1732108907814,5.1026,238.77,238.59,3.24]
[1732108907815,3.24,238.84,238.7,10.10681884]
[1732108908014,3.24,238.84,238.73,10.10681884]
[1732108908521,3.24,238.84,238.68,13.36681884]
[1732108908714,3.24,238.84,238.71,12.19961884]
[1732108908919,3.24,238.84,238.71,10.10681884]
[1732108909321,2.0924,238.75,238.71,12.19961884]
[1732108909521,3.24,238.84,238.57,2.4717]
[1732108909718,2.0924,238.75,238.58,3.26]
[1732108910027,7.1117,238.88,238.61,10.10681884]
[1732108910028,3.26,238.76,238.61,10.10681884]
[1732108910325,2.3497,238.74,238.61,10.10681884]
[1732108910823,2.3497,238.74,238.58,3.26]
[1732108910824,2.3497,238.74,238.64,10.10681884]
[1732108911326,2.3497,238.74,238.67,10.10681884]
[1732108912322,2.3497,238.74,238.58,3.26]
[1732108912526,2.3497,238.74,238.61,10.10681884]
[1732108912830,2.0931,238.68,238.61,10.10681884]
[1732108913133,2.3497,238.74,238.61,10.10681884]
[1732108913324,2.0929,238.7,238.63,2.0934]
[1732108913525,2.0929,238.7,238.61,10.10681884]
[1732108913732,2.3497,238.74,238.61,10.10681884]
[1732108913923,2.3497,238.74,238.63,2.0934]
[1732108914129,2.3497,238.74,238.58,10.10681884]
[1732108914326,2.0935,238.64,238.58,10.10681884]
[1732108914526,10.10681884,238.7,238.55,10.10681884]
[1732108914930,2.0936,238.62,238.57,2.094]
[1732108915131,10.10681884,238.7,238.55,10.10681884]
[1732108915327,10.10681884,238.7,238.5,2.5511]
[1732108915527,2.0937,238.61,238.54,2.0942]
[1732108915724,3.26,238.67,238.53,10.10681884]
[1732108916030,2.0938,238.6,238.54,2.0942]
[1732108916224,3.26,238.67,238.53,10.10681884]
[1732108916933,3.26,238.67,238.56,10.10681884]
[1732108917134,2.0933,238.65,238.59,2.0938]
[1732108917330,3.26,238.67,238.56,10.10681884]
[1732108918432,3.26,238.67,238.58,2.0938]
[1732108918628,3.26,238.67,238.56,10.10681884]
[1732108919035,2.0935,238.63,238.57,2.094]
[1732108919327,10.10681884,238.62,238.38,4.1913]
[1732108919534,2.0939,238.59,238.53,2.0943]
[1732108919729,2.3251,238.62,238.5,10.10681884]
[1732108919930,2.3251,238.62,238.53,10.10681884]
[1732108920228,3.26,238.64,238.53,10.10681884]
[1732108920425,3.16,238.64,238.56,10.10681884]
[1732108920737,3.16,238.66,238.56,10.10681884]
[1732108921332,3.16,238.66,238.59,10.10681884]
[1732108921734,3.16,238.66,238.56,10.10681884]
[1732108922030,2.0934,238.65,238.59,10.10681884]
[1732108922238,2.0934,238.65,238.45,3.26]
[1732108922239,3.16,238.72,238.63,10.10681884]
[1732108922429,2.0932,238.66,238.61,2.0936]
[1732108922633,13.26681884,238.72,238.57,10.10681884]
[1732108923332,13.26681884,238.72,238.56,10.10681884]
[1732108923532,2.0936,238.62,238.56,10.10681884]
[1732108923734,13.26681884,238.72,238.56,10.10681884]
[1732108924135,2.0936,238.62,238.56,10.10681884]
[1732108924330,13.26681884,238.72,238.56,10.10681884]
[1732108924633,3.16,238.71,238.54,2.4719]
[1732108924934,10.10681884,238.65,238.5,10.10681884]
[1732108925135,10.10681884,238.65,238.39,2.4234]
[1732108925136,2.0938,238.59,238.51,2.0945]
[1732108925331,10.10681884,238.62,238.51,2.0945]
[1732108925842,2.0941,238.56,238.51,2.0945]
[1732108926538,2.0942,238.55,238.51,2.0945]
[1732108926941,3.16,238.57,238.47,10.10681884]
[1732108927243,3.16,238.57,238.45,2.6146]
[1732108928035,10.10681884,238.56,238.41,10.10681884]
[1732108928246,10.10681884,238.53,238.38,10.10681884]
[1732108928438,10.10681884,238.53,238.4,2.0954]
[1732108928636,3.16,238.57,238.35,10.10681884]
[1732108928637,10.10681884,238.5,238.35,10.10681884]
[1732108928941,4.9299,238.52,238.32,10.10681884]
[1732108928942,10.10681884,238.47,238.32,10.10681884]
[1732108929238,10.10681884,238.47,238.29,10.10681884]
[1732108929239,3.16,238.46,238.29,10.10681884]
[1732108929444,2.0955,238.4,238.33,2.096]
[1732108929740,10.10681884,238.47,238.26,7.9286]
[1732108929741,3.16,238.43,238.32,10.10681884]
[1732108929945,2.0952,238.44,238.32,10.10681884]
[1732108930248,3.16,238.45,238.32,10.10681884]
[1732108930641,3.16,238.45,238.3,16.20986659]
[1732108930842,3.16,238.45,238.26,20.97846659]
[1732108931039,3.16,238.45,238.26,4.7686]
[1732108931245,16.20986659,238.42,238.26,2.3837]
[1732108931443,4.9258,238.41,238.2,16.20986659]
[1732108931645,4.9258,238.41,238.21,2.5809]
[1732108932339,16.20986659,238.38,238.21,2.5809]
[1732108932541,5.5722,238.37,238.21,2.5809]
[1732108932739,2.0964,238.3,238.21,2.0971]
[1732108933045,3.16,238.3,238.16,16.20986659]
[1732108933547,3.16,238.3,238.16,2.0976]
[1732108933746,2.4077,238.29,238.13,4.9849]
[1732108933947,5.0377,238.29,238.13,2.0978]
[1732108934148,16.20986659,238.26,237.92,4.1995]
[1732108934348,2.6249,238.25,238.04,16.20986659]
[1732108934650,2.0977,238.15,238.04,16.20986659]
[1732108934846,3.16,238.14,238.0,16.20986659]
[1732108935143,3.16,238.14,238.04,2.0986]
[1732108935346,3.16,238.14,238.0,16.20986659]
[1732108935544,3.16,238.14,237.97,4.8761]
[1732108935748,2.0982,238.09,237.97,4.8761]
[1732108935948,5.2382,238.13,237.97,2.4814]
[1732108936244,16.20986659,238.06,237.88,2.5357]
[1732108936448,3.16,238.05,237.9,2.0998]
[1732108936642,3.16,238.05,237.88,2.5357]
[1732108936848,3.16,238.05,237.85,16.20986659]
[1732108937252,3.16,238.05,237.89,16.20986659]
[1732108937449,2.099,238.01,237.89,18.30976659]
[1732108937649,3.16,238.0,237.89,18.30976659]
[1732108937844,3.16,238.0,237.89,2.0999]
[1732108938052,16.20986659,238.1,237.93,2.0996]
[1732108938247,3.16,238.09,237.89,16.20986659]
[1732108938449,3.16,238.08,237.89,16.20986659]
[1732108938755,16.20986659,238.1,237.89,16.20986659]
[1732108938950,3.16,238.09,237.93,16.20986659]
[1732108939254,3.16,238.09,237.98,2.0991]
[1732108939646,7.8682,238.13,237.98,2.0991]
[1732108939846,7.8682,238.13,237.93,16.20986659]
[1732108939847,3.16,238.12,237.93,16.20986659]
[1732108940044,3.16,238.11,237.97,16.20986659]
[1732108940452,2.0975,238.17,238.06,2.0984]
[1732108940851,3.16,238.2,238.05,16.20986659]
[1732108941053,5.0426,238.22,238.11,2.098]
[1732108941251,5.0426,238.22,238.09,16.20986659]
[1732108941647,2.0973,238.2,238.08,5.2583]
[1732108941853,5.0426,238.22,238.08,3.16]
[1732108942149,5.0426,238.22,238.08,19.36986659]
[1732108942748,7.1397,238.22,238.13,2.0978]
[1732108942953,5.0426,238.22,238.13,2.0978]
[1732108943148,5.0426,238.22,238.08,19.36986659]